Cogmind - Beta 11.1 @@@ ROGUE MODE // 2022.04.29 @ 22:32:03 Player: Olga Result: Self-destructed Performance ------------- Evolutions (3) 1500 Regions Visited (6) 1200 Robots Destroyed (0) 0 Value Destroyed (0) 0 Prototype IDs (1) 20 Alien Tech Used (0) 0 Bonus (834) 834 TOTAL SCORE: 3554 Bonus ------- Pacifist 834 Cogmind --------- Core Integrity 520/700 Matter 290/300 Energy 100/100 System Corruption 0% Temperature Cool (0) Movement Core (150) Ox2 Location -7/Storage Parts ------- > --- POWER (1) -------- (None) > --- PROPULSION (4) --- Faulty Improved VTOL Module > --- UTILITY (6) ------ Machine Analyzer Improved Terrain Scan Processor Advanced Terrain Scan Processor System Shield Drone Bay (2/2) > --- WEAPON (2) ------- Katana > --- INVENTORY (5) ---- Light Treads Light Treads Wheel Compact Wheel Peak State ------------ > --- POWER ------------ (None) > --- PROPULSION ------- Improved VTOL Module > --- UTILITY ---------- Machine Analyzer Improved Terrain Scan Processor Advanced Terrain Scan Processor System Shield Drone Bay > --- WEAPON ----------- Katana > --- INVENTORY -------- Light Treads Light Treads Wheel Compact Wheel [Rating: 25] Favorites ----------- Power Ion Engine Engine Ion Engine Propulsion Improved VTOL Module Leg Aluminum Leg Flight Unit Improved VTOL Module Utility Machine Analyzer Device Drone Bay Storage Small Storage Unit Processor Machine Analyzer Hackware System Shield Weapon Small Laser Energy Gun Small Laser Ballistic Gun Light Assault Rifle Slashing Weapon Katana Build | -11 -10 -9 -9 -8 -7 -7 ------- Run | Scr Mat Mat Min Mat Fac Sto Slots Evolved 6 | . . 2 . 2 2 . Power . | . . . . . . . Propulsion 2 | . . . . . 2 . Utility 4 | . . 2 . 2 . . Weapon . | . . . . . . . Parts Attached 11 | . 1 . . 7 2 1 Power . | . . . . . . . Engine . | . . . . . . . Core . | . . . . . . . Reactor . | . . . . . . . Propulsion 4 | . . . . 3 1 . Treads . | . . . . . . . Leg . | . . . . . . . Wheel . | . . . . . . . Hover . | . . . . . . . Flight 4 | . . . . 3 1 . Utility 5 | . . . . 3 1 1 Device 1 | . . . . . . 1 Storage . | . . . . . . . Processor 3 | . . . . 2 1 . Hackware 1 | . . . . 1 . . Protection . | . . . . . . . Artifact . | . . . . . . . Weapon 2 | . 1 . . 1 . . Energy Gun . | . . . . . . . Energy Cannon . | . . . . . . . Ballistic Gun 1 | . 1 . . . . . Ballistic Cannon . | . . . . . . . Launcher . | . . . . . . . Special Weapon . | . . . . . . . Impact Weapon . | . . . . . . . Slashing Weapon 1 | . . . . 1 . . Piercing Weapon . | . . . . . . . Special Melee Weapon . | . . . . . . . Unidentified Prototypes 1 | . . . . 1 . . Parts Lost 3 | . . . . 2 1 . Power . | . . . . . . . Propulsion 3 | . . . . 2 1 . Utility . | . . . . . . . Weapon . | . . . . . . . Highest Loss Streak 1 | . . . . 1 1 . To Critical Strikes . | . . . . . . . Average Slot Usage (%) 33 | . 28 22 22 38 47 51 Flight 4 | . . . . 9 10 7 Processor 9 | . . . . 14 21 23 Hackware 2 | . . . . 4 7 7 Energy Gun 6 | . 14 11 11 1 . . Ballistic Gun 6 | . 14 11 11 1 . . Slashing Weapon 3 | . . . . 7 7 7 Naked Turns . | . . . . . . . Heaviest Build 13 | 13 2 2 2 2 2 8 Greatest Support 20 | 20 3 3 3 4 6 3 Greatest Overweight (x) 2 | . . . . . . 2 Average Overweight (x) . | . . . . . . . Largest Inventory Capacity 8 | . 8 5 5 5 5 5 Average Capacity 5 | . 5 5 5 5 5 5 Most Carried 6 | . 6 5 5 5 4 4 Average Carried 4 | . 4 4 5 4 4 4 Final Capacity 8 | 8 5 5 5 5 5 5 Final Carried 6 | 6 4 5 5 4 4 4 Class Distribution -------------------- 100% | Mutant Dominant Class ---------------- Mutant | -10/Materials Mutant | -9/Materials Mutant | -9/Mines Mutant | -8/Materials Mutant | -7/Factory Mutant | -7/Storage Resources | -11 -10 -9 -9 -8 -7 -7 ----------- Run | Scr Mat Mat Min Mat Fac Sto Matter Collected 282 | 200 . . 7 . 70 5 Remotely . | . . . . . . . Salvage Created . | . . . . . . . Parts . | . . . . . . . Haulers Intercepted . | . . . . . . . Recyclers Shooed . | . . . . . . . Parts Field Recycled . | . . . . . . . Retrieved Matter . | . . . . . . . Parts Self-Destructed . | . . . . . . . Prevented . | . . . . . . . Kills | -11 -10 -9 -9 -8 -7 -7 ------- Run | Scr Mat Mat Min Mat Fac Sto Combat Hostiles Destroyed . | . . . . . . . Classes Destroyed . | . . . . . . . Best Kill Streak . | . . . . . . . Combat Bots Only . | . . . . . . . Max Kills in Single Turn . | . . . . . . . Gunslinging . | . . . . . . . Exploded . | . . . . . . . Melee . | . . . . . . . Uniques/NPCs Destroyed . | . . . . . . . Combat | -11 -10 -9 -9 -8 -7 -7 -------- Run | Scr Mat Mat Min Mat Fac Sto Damage Taken 650 | . . 49 149 99 145 208 Core 268 | . . 24 47 17 81 99 Absorbed by Shields . | . . . . . . . Core Remaining (%) 94 | 100 100 . 82 96 . . Volleys Fired . | . . . . . . . Largest . | . . . . . . . Hottest . | . . . . . . . Shots Fired . | . . . . . . . Gun . | . . . . . . . Cannon . | . . . . . . . Launcher . | . . . . . . . Special . | . . . . . . . Kinetic . | . . . . . . . Thermal . | . . . . . . . Explosive . | . . . . . . . Electromagnetic . | . . . . . . . Robot Hit Streak . | . . . . . . . Robot Miss Streak . | . . . . . . . Penetration Max . | . . . . . . . Secondary Targets . | . . . . . . . Shots Hit Robots . | . . . . . . . Core Hits . | . . . . . . . Critical Kills . | . . . . . . . Critical Parts Destroyed . | . . . . . . . Critical Strikes . | . . . . . . . Melee Attacks 2 | . . . . 1 1 . Impact . | . . . . . . . Slashing 2 | . . . . 1 1 . Piercing . | . . . . . . . Sneak Attacks . | . . . . . . . Combat Hostiles . | . . . . . . . Follow-up Attacks . | . . . . . . . Damage Inflicted 5 | . . . 5 . . . Guns . | . . . . . . . Cannons . | . . . . . . . Explosions . | . . . . . . . Melee . | . . . . . . . Ramming 5 | . . . 5 . . . Kinetic . | . . . . . . . Thermal . | . . . . . . . Explosive . | . . . . . . . Electromagnetic . | . . . . . . . Impact . | . . . . . . . Slashing . | . . . . . . . Piercing . | . . . . . . . Highest Corruption 1 | . . . . 1 . . Average Corruption 1 | . . . . 1 . . Corruption Purged . | . . . . . . . Corruption Blocked . | . . . . . . . Overload Shots . | . . . . . . . Overflow Damage . | . . . . . . . Projectiles . | . . . . . . . Explosions . | . . . . . . . Melee . | . . . . . . . Knockbacks . | . . . . . . . Impact . | . . . . . . . Kinetic . | . . . . . . . Secondary . | . . . . . . . Self-Inflicted Damage 2 | . . . 2 . . . Shots . | . . . . . . . Rammed 1 | . . . 1 . . . Targets Rammed 1 | . . . 1 . . . Kicked . | . . . . . . . Crushed . | . . . . . . . Highest Temperature 11 | . . . . . 11 . Average Temperature 11 | . . . . . 11 . Received Heat Transfer 126 | . . 9 . 18 99 . Siege Activations . | . . . . . . . Robots Corrupted . | . . . . . . . Combat Hostiles . | . . . . . . . Parts Fried . | . . . . . . . Impact Corruptions . | . . . . . . . Robots Melted . | . . . . . . . Combat Hostiles . | . . . . . . . Parts Melted . | . . . . . . . Heat Transferred . | . . . . . . . Parts Sabotaged . | . . . . . . . Parts Stolen . | . . . . . . . Parts Stripped . | . . . . . . . Power Chain Reactions . | . . . . . . . Missiles Intercepted . | . . . . . . . Alert | -11 -10 -9 -9 -8 -7 -7 ------- Run | Scr Mat Mat Min Mat Fac Sto Peak Influence 368 | . 38 30 86 368 204 87 Initial 167 | . . 15 11 33 167 87 Average 93 | . 21 16 42 163 175 73 Maximum Alert Level 1 | . . . . 1 1 . Low Security (%) 86 | . 100 100 100 58 96 100 Level 1 13 | . . . . 41 3 . Level 2 . | . . . . . . . Level 3 . | . . . . . . . Level 4 . | . . . . . . . Level 5 . | . . . . . . . High Security . | . . . . . . . Max Security . | . . . . . . . Squads Dispatched 6 | . . 1 . 3 2 . Investigation 3 | . . 1 . 1 1 . Extermination . | . . . . . . . Reinforcement 3 | . . . . 2 1 . Assault . | . . . . . . . Garrison . | . . . . . . . Intercept . | . . . . . . . Searches Triggered . | . . . . . . . Construction Impeded . | . . . . . . . Haulers Reinforced . | . . . . . . . Active Scanning Responses . | . . . . . . . Cargo Convoy Interrupts . | . . . . . . . Stealth | -11 -10 -9 -9 -8 -7 -7 --------- Run | Scr Mat Mat Min Mat Fac Sto Distress Signals 3 | . . 1 . 2 . . Communications Jammed . | . . . . . . . Distress Signals . | . . . . . . . Times Spotted 46 | . 2 9 7 19 5 4 Peak Tracking Total 19 | . 2 10 3 19 8 4 Tactical Retreats 6 | . . . 2 4 . . Traps | -11 -10 -9 -9 -8 -7 -7 ------- Run | Scr Mat Mat Min Mat Fac Sto Traps Triggered 2 | . . . . 1 1 . Indirectly . | . . . . . . . Trap Hack Attempts . | . . . . . . . Triggered . | . . . . . . . Disarmed . | . . . . . . . Reprogrammed . | . . . . . . . Reused . | . . . . . . . Traps Extracted . | . . . . . . . Installed . | . . . . . . . Triggered . | . . . . . . . Machines | -11 -10 -9 -9 -8 -7 -7 ---------- Run | Scr Mat Mat Min Mat Fac Sto Machines Disabled . | . . . . . . . Max in Single Turn . | . . . . . . . Machines Sabotaged . | . . . . . . . Garrisons Compromised . | . . . . . . . Overloaded Fab Kills . | . . . . . . . Hacking | -11 -10 -9 -9 -8 -7 -7 --------- Run | Scr Mat Mat Min Mat Fac Sto Machines Accessed 8 | . 1 1 . 4 1 1 Terminals 8 | . 1 1 . 4 1 1 Fabricators . | . . . . . . . Repair Stations . | . . . . . . . Recycling Units . | . . . . . . . Scanalyzers . | . . . . . . . Garrison Access . | . . . . . . . Total Hacks 19 | . 1 2 . 11 4 1 Successful 5 | . 1 . . 1 2 1 Failed 14 | . . 2 . 10 2 . Catastrophic 6 | . . 1 . 4 1 . Database Lockouts . | . . . . . . . Manual 14 | . . 2 . 8 4 . Terminals 19 | . 1 2 . 11 4 1 Fabricators . | . . . . . . . Repair Stations . | . . . . . . . Recycling Units . | . . . . . . . Scanalyzers . | . . . . . . . Garrison Access . | . . . . . . . Terminal Hacks 5 | . 1 . . 1 2 1 Open Door 1 | . . . . . . 1 Level Access Points 3 | . 1 . . 1 1 . Zone Layout 1 | . . . . . 1 . Fabricator Hacks . | . . . . . . . Repair Station Hacks . | . . . . . . . Recycling Unit Hacks . | . . . . . . . Scanalyzer . | . . . . . . . Garrison Access Hacks . | . . . . . . . Unauthorized Hacks . | . . . . . . . Terminals . | . . . . . . . Fabricators . | . . . . . . . Repair Stations . | . . . . . . . Recycling Units . | . . . . . . . Scanalyzers . | . . . . . . . Garrison Access . | . . . . . . . Data Cores Recovered . | . . . . . . . Used . | . . . . . . . Hacking Detections 6 | . . 1 . 3 1 1 Full Trace Events 2 | . . 1 . 1 . . Feedback Events . | . . . . . . . Feedback Blocked . | . . . . . . . Robot Schematics Acquired . | . . . . . . . Robots Built . | . . . . . . . Authchips . | . . . . . . . Time . | . . . . . . . Total Robot Build Rating . | . . . . . . . Part Schematics Acquired . | . . . . . . . Parts Built . | . . . . . . . Authchips . | . . . . . . . Time . | . . . . . . . Total Part Build Rating . | . . . . . . . Parts Repaired . | . . . . . . . Time . | . . . . . . . Parts Recycled . | . . . . . . . Recycled Matter . | . . . . . . . Retrieved Matter . | . . . . . . . Retrieved Components . | . . . . . . . Parts Scanalyzed . | . . . . . . . Part Schematics Acquired . | . . . . . . . Parts Damaged . | . . . . . . . Bothacking | -11 -10 -9 -9 -8 -7 -7 ------------ Run | Scr Mat Mat Min Mat Fac Sto Used RIF Installer . | . . . . . . . Robots Hacked . | . . . . . . . Non-combat . | . . . . . . . Combat . | . . . . . . . Robot Hacks Applied . | . . . . . . . Relay Couplers Released . | . . . . . . . Fabnet Peak Effective % . | . . . . . . . Robots Rewired . | . . . . . . . Allies Hacked . | . . . . . . . Hacks Repelled . | . . . . . . . Allies | -11 -10 -9 -9 -8 -7 -7 -------- Run | Scr Mat Mat Min Mat Fac Sto Total Allies . | . . . . . . . Largest Group . | . . . . . . . Highest-Rated Group . | . . . . . . . Highest-Rated Ally . | . . . . . . . Total Orders . | . . . . . . . Ally Attacks . | . . . . . . . Total Damage . | . . . . . . . Kills . | . . . . . . . Allies Corrupted . | . . . . . . . Allies Melted . | . . . . . . . Intel | -11 -10 -9 -9 -8 -7 -7 ------- Run | Scr Mat Mat Min Mat Fac Sto Robot Analysis Total . | . . . . . . . Derelict Logs Recovered 1 | . . . 1 . . . Drone Launches 10 | . . . . . . 10 Drone Recoveries 2 | . . . . . . 2 Exploration | -11 -10 -9 -9 -8 -7 -7 ------------- Run | Scr Mat Mat Min Mat Fac Sto Turns Passed 439 | . 61 39 112 137 51 39 Spaces Moved 807 | 1 115 76 214 265 98 38 Core 695 | . 115 76 214 189 63 38 Treads . | . . . . . . . Legs 1 | 1 . . . . . . Wheels . | . . . . . . . Hover . | . . . . . . . Flight 111 | . . . . 76 35 . Fastest Speed 35 | 120 50 50 50 35 40 50 Average Speed 49 | 120 50 50 50 45 46 78 Slowest Speed 150 | 120 50 50 50 50 50 150 Overloaded Moves . | . . . . . . . Propulsion Burnouts . | . . . . . . . Robots Hopped 4 | . . . . 4 . . Cave-ins Triggered . | . . . . . . . Exploration Rate (%) 21 | 2 32 15 53 36 5 10 Regions Visited 6 Branch Regions 2 Pre-discovered Areas 1 | . . . 1 . . . Known Exits Taken 2 | . 1 . . 1 . . Unknown Exits Taken 4 | 1 . 1 1 . 1 . Scrap Searched 1 | . . . 1 . . . Spaces Dug 2 | . . . . 1 1 . Terrain Destroyed 2 | . . . . 1 1 . Melee 2 | . . . . 1 1 . Projectile . | . . . . . . . AOE . | . . . . . . . Terrain Rammed . | . . . . . . . Walls Destroyed . | . . . . . . . Machines Disabled . | . . . . . . . Actions | -11 -10 -9 -9 -8 -7 -7 --------- Run | Scr Mat Mat Min Mat Fac Sto Total 832 | . 120 76 218 272 100 46 Wait 9 | . . . 4 2 . 3 Move 794 | . 114 75 213 257 97 38 Hop 3 | . . . . 3 . . Pick Up 1 | . . 1 . . . . Fast Attach 9 | . . . . 6 2 1 Attach 2 | . 1 . . 1 . . Detach . | . . . . . . . Swap . | . . . . . . . Drop 7 | . 5 . . 2 . . Fire . | . . . . . . . Melee 2 | . . . . 1 1 . Ram 1 | . . . 1 . . . Kick . | . . . . . . . Crush . | . . . . . . . Escape Stasis . | . . . . . . . Rewire . | . . . . . . . Trap . | . . . . . . . Miscellaneous 4 | . . . . . . 4 Route ------- -11/Scrapyard -10/Materials (discovered 3 exits: *Mat x3) -9/Materials -9/Mines -8/Materials (discovered 3 exits: *Fac x3) -7/Factory (discovered 5 exits: Fac x4 / *Sto) -7/Storage History --------- Turn | Location | Event 1 | -11/Scrapyard | Discovered new exit (range 0) 1 | -11/Scrapyard | Entered Materials 27 | -10/Materials | Identified exit to Materials 62 | -10/Materials | Entered another Materials area 62 | -9/Materials | Evolved 2 slots: Utility x2 97 | -9/Materials | Discovered new exit (range 9) 101 | -9/Materials | Entered Mines 160 | -9/Mines | Learned location of Zion (-6) 207 | -9/Mines | Discovered new exit (range 14) 211 | -9/Mines | Assembled infested the area 213 | -9/Mines | Entered Materials 213 | -8/Materials | Evolved 2 slots: Utility x2 306 | -8/Materials | Build established: Mutant 345 | -8/Materials | Identified exit to Factory 350 | -8/Materials | Entered Factory 350 | -7/Factory | Evolved 2 slots: Propulsion x2 366 | -7/Factory | Identified exit to Factory 391 | -7/Factory | Discovered new exit (range 12) 401 | -7/Factory | Entered Storage 440 | -7/Storage | Self-destructed Last Messages --------------- 00398_ Critical hit (Burn: +37). 00400_ G-47 Trooper suffers critical hit (Burn). LOCATION=UNKNOWN GOAL=ESCAPE 00406_ Acquired 5 matter. 00414_ Connecting with Door Terminal... 00414_ Current location identified: Storage >>Open(Door) Sealed Heavy Doors opened. 00415_ Acquired Drone Bay. 00418_ Drone released from Drone Bay. 00419_ Drone destroyed. 00422_ Drone released from Drone Bay. 00424_ Drone retrieved by Drone Bay. 00426_ Drone released from Drone Bay. 00428_ Drone destroyed. 00434_ Drone released from Drone Bay. 00436_ Drone destroyed. 00436_ Drone retrieved by Drone Bay. 00437_ Drone destroyed. Map ----- +----------------------------------------------------+ | ??????????????????????????????????? | | ??????????????????????????????????? | | ??????????????????????????????????? | | ??????????????????????????????????? | | ??????????????????????????????????? | | ??????????????????????????????????? | | ??????????????????????????????????? | | ??????????????????????????????????? | | ??????????????????????????????????? | | ??????????????????????????????????? | | ??????????????????????????????????? | | ??????????????????????????????????? | | ??????????????????????????????????? | | ??????????????????????????????????? | | ??????????????????????????????????? | | ??????????????????????????????????? | | ??????????????????????????????????? | | ??????????????????????????????????? | | ??????????????????????????????????? | | ??????????????????????????????????? | | ??????????????????????????????????? | | ??????????????????????????????????? | | ??????????????????????????????????? | | ??????????????????????????????????? | | ???????#####??????????????????????? | | ???????#!%@#??????????????????????? | | ???????#!%!#??????????????????????? | | ???????#sss#??????????????????????? | | ???????#%sn#??????????????????????? | | ??????### ##??????????????????????? | | ??????#T % #??????????????????????? | | ?????###+###??????????????????????? | | ?????# % #####+######???????????? | | ?????# ???????? | | ?????# ???????? | | ?????# ???????? | | ?????# ######## #####?????????? | | ?????## #########+#?????????????? | | ??????# # / #?????????????? | | ??????# # #?????????????? | | ??????# # #?????????????? | | ??????# + [ #?????????????? | | ??????# # #?????????????? | | ??????# # ! #?????????????? | | ??????# # % #?????????????? | | ??????# # #?????????????? | | ??????# ###########?????????????? | | ??????#####???????????????????????? | | ??????????????????????????????????? | | ??????????????????????????????????? | +----------------------------------------------------+ Best States ------------- Heat Dissipation 34 Energy Generation 5 Energy Capacity 100 Matter Stores 300 Matter Capacity 300 Sight Range 16 Terrain Scan Density 310 Evasion (%) 63 Defensive Hacking 10 Item Schematics ----------------- None Robot Schematics ------------------ None Fabricated ------------ Nothing Alien Tech Used ----------------- None Achievements -------------- None Challenges ------------ None Game ------ Seed AntimatterColdCapacitor Manual? 0 Play Time 00:09:51 Cumulative 121.9 hours Start 2022.04.29 @ 22:22:57 End 2022.04.29 @ 22:32:03 Sessions 1 Manual Loads 0 Difficulty Rogue Special Mode None Game No. 155 Rogue 154 Adventurer 0 Explorer 1 Win Type - Total 3 Types 3/0/0/0/0/0/0/0/0 Lore% 58 Gallery% 56 Achievement% 47 Wizard Run 0 Options --------- ASCII 1 Keyboard 0 Movement Vi Keybinds 0 Fullscreen 1 Font 18/SmallcapsGlow Map View 76x50 Tactical HUD 1 Map Filters NONE Filters NONE Steam 1 RUN: 5aa0881f-5d0d-48f6-ad8c-aebff9e1a91f